Cogmind - Beta 13 @@@ ROGUE MODE // 2024.03.08 @ 23:08:14 Player: arkn Result: Destroyed by B-48 Gladiator with Mace Performance ------------- Evolutions (3) 1500 Regions Visited (7) 1400 Robots Destroyed (116) 580 Value Destroyed (3284) 3284 Prototype IDs (4) 80 Alien Tech Used (0) 0 Bonus (600) 600 TOTAL SCORE: 7444 Bonus ------- High Alert Combat Kills 600 Cogmind --------- Core Integrity 0/700 Matter 158/300 Energy 35/100 System Corruption 16% Temperature Cool (0) Movement Core (200) Ox3 Location -7/Factory Parts ------- > --- POWER (1) -------- (None) > --- PROPULSION (3) --- (None) > --- UTILITY (6) ------ Seismic Detector Hardened Medium Armor Plating > --- WEAPON (3) ------- Power Maul > --- INVENTORY (5) ---- Micro Nuclear Core Medium Storage Unit Proton Missile Launcher Mini Grenade Launcher Peak State ------------ > --- POWER ------------ Micro Nuclear Core > --- PROPULSION ------- Armored Wheel Armored Huge Wheel > --- UTILITY ---------- Large Storage Unit Structural Scanner Improved Signal Interpreter Improved Targeting Computer Core Analyzer Improved Utility Shielding > --- WEAPON ----------- Enhanced Autogun Gauss Rifle Precision Assault Rifle > --- INVENTORY -------- Armored Wheel Medium Storage Unit Kinecellerator Enhanced Autogun Gauss Rifle Gauss Cannon Mini Grenade Launcher Plasma Cutter Maul Scythe Great Axe [Rating: 44] Favorites ----------- Power Improved Ion Engine Engine Improved Ion Engine Power Core Micro Nuclear Core Propulsion Armored Wheel Leg Aluminum Leg Wheel Armored Wheel Utility Medium Storage Unit Device Cooling System Storage Medium Storage Unit Processor Improved Signal Interpreter Protection Improved Light Armor Plating Weapon Advanced Beam Cannon Energy Cannon Advanced Beam Cannon Ballistic Gun Gauss Rifle Ballistic Cannon Gauss Cannon Special Weapon Plasma Cutter Impact Weapon Power Maul Slashing Weapon Scythe Build | -11 -10 -9 -9 -9 -8 -8 -7 ------- Run | Yrd Mat Mat Min Exi Min Mat Fac Slots Evolved 6 | . . 2 . . . 2 2 Power . | . . . . . . . . Propulsion 1 | . . 1 . . . . . Utility 4 | . . 1 . . . 2 1 Weapon 1 | . . . . . . . 1 Parts Attached 89 | 1 10 14 . 2 . 15 47 Power 13 | . 1 3 . 1 . . 8 Engine 9 | . 1 3 . 1 . . 4 Core 4 | . . . . . . . 4 Reactor . | . . . . . . . . Propulsion 17 | . 2 3 . . . 3 9 Treads . | . . . . . . . . Leg 6 | . . . . . . 3 3 Wheel 11 | . 2 3 . . . . 6 Hover . | . . . . . . . . Flight . | . . . . . . . . Utility 25 | 1 2 3 . . . 6 13 Device 11 | 1 1 1 . . . 2 6 Storage 4 | . 1 . . . . . 3 Processor 3 | . . . . . . 2 1 Hackware . | . . . . . . . . Protection 7 | . . 2 . . . 2 3 Artifact . | . . . . . . . . Weapon 34 | . 5 5 . 1 . 6 17 Energy Gun . | . . . . . . . . Energy Cannon 10 | . 2 4 . . . 4 . Ballistic Gun 12 | . 1 1 . . . 1 9 Ballistic Cannon 3 | . 1 . . . . . 2 Launcher . | . . . . . . . . Special Weapon 1 | . . . . 1 . . . Impact Weapon 4 | . 1 . . . . 1 2 Slashing Weapon 4 | . . . . . . . 4 Piercing Weapon . | . . . . . . . . Special Melee Weapon . | . . . . . . . . Unidentified Prototypes 4 | . . 2 . . . 1 1 Parts Lost 38 | . . 3 . . . 3 32 Power 6 | . . . . . . . 6 Propulsion 10 | . . 2 . . . 1 7 Utility 13 | . . 1 . . . 2 10 Weapon 9 | . . . . . . . 9 Highest Loss Streak 10 | . . 2 . . . 1 10 To Critical Strikes . | . . . . . . . . Average Slot Usage (%) 93 | . 100 99 100 100 100 97 85 Engine 8 | . 14 11 11 11 11 9 3 Leg 7 | . 20 . . . . 2 9 Wheel 17 | . 8 32 33 33 33 23 5 Device 12 | . 14 16 11 11 11 17 8 Storage 9 | . 14 11 11 11 11 9 6 Processor 8 | . . . . . . 8 18 Protection 6 | . . 5 11 11 11 10 5 Energy Cannon 9 | . 4 21 22 13 11 15 1 Ballistic Gun 8 | . 20 . . . . . 13 Special Weapon 1 | . . . . 8 11 . . Naked Turns . | . . . . . . . . Heaviest Build 49 | 12 23 32 32 32 26 33 49 Greatest Support 41 | 20 24 36 34 34 34 36 41 Greatest Overweight (x) 5 | . 1 1 . . . 1 5 Average Overweight (x) . | . . . . . . . . Largest Inventory Capacity 15 | 8 10 10 10 10 10 10 15 Average Capacity 10 | 8 9 10 10 10 10 10 11 Most Carried 12 | 8 10 10 10 10 10 10 12 Average Carried 9 | 6 8 9 10 10 10 9 9 Final Capacity 10 | 8 10 10 10 10 10 10 5 Final Carried 10 | 8 10 10 10 10 10 10 4 Class Distribution -------------------- 77% | Mutant 19% | Scavenger-Gunner Dominant Class ---------------- Mutant | -10/Materials Mutant | -9/Materials Mutant | -9/Mines Mutant | -9/Exiles Mutant | -8/Mines Mutant | -8/Materials Scavenger-Gunner | -7/Factory Resources | -11 -10 -9 -9 -9 -8 -8 -7 ----------- Run | Yrd Mat Mat Min Exi Min Mat Fac Matter Collected 2118 | 246 343 340 . 28 . 127 1034 Remotely . | . . . . . . . . Salvage Created 4292 | 102 455 1456 68 51 . 644 1516 Parts 255 | 4 31 94 9 2 . 34 81 Haulers Intercepted 10 | . 1 4 . . . 2 3 Recyclers Shooed . | . . . . . . . . Parts Field Recycled . | . . . . . . . . Retrieved Matter . | . . . . . . . . Parts Self-Destructed . | . . . . . . . . Prevented . | . . . . . . . . Kills | -11 -10 -9 -9 -9 -8 -8 -7 ------- Run | Yrd Mat Mat Min Exi Min Mat Fac Combat Hostiles Destroyed 81 | . 10 26 4 . . 10 31 Melee 3 | . . . . . . . 3 Guns 20 | . 7 . . . . . 13 Cannons 56 | . 3 26 4 . . 10 13 AOE 1 | . . . . . . . 1 Classes Destroyed 12 | 2 6 3 . . . . 1 Worker 5 | . 2 1 . . . . 2 Builder 8 | . 1 3 . . . . 4 Tunneler 1 | 1 . . . . . . . Hauler 10 | . 1 4 . . . 2 3 Recycler 4 | 1 . 1 . . . . 2 Watcher 7 | . 2 3 . . . 1 1 Swarmer 22 | . 3 4 4 . . . 11 Grunt 39 | . 7 11 . . . 6 15 Brawler 2 | . . 2 . . . . . Duelist 2 | . . 1 . . . 1 . Sentry 14 | . . 8 . . . 3 3 Programmer 2 | . . . . . . . 2 Best Kill Streak 9 | 2 5 8 4 . . 5 9 Combat Bots Only 7 | . 3 7 4 . . 4 4 Max Kills in Single Turn 6 | 1 2 2 2 . . 1 6 Gunslinging 1 | . 1 . . . . . . Exploded 1 | . . . . . . . 1 Melee 1 | . . . . . . . 1 Uniques/NPCs Destroyed . | . . . . . . . . Combat | -11 -10 -9 -9 -9 -8 -8 -7 -------- Run | Yrd Mat Mat Min Exi Min Mat Fac Hostile Shots Fired 645 | . 64 111 6 . . 51 413 Missed 207 | . 18 43 1 . . 14 131 Damage Taken 6072 | . 515 802 41 . . 650 4064 Core 1100 | . 107 160 13 . . 118 702 Absorbed by Shields . | . . . . . . . . Redirected to Shielding 105 | . . . . . . . 105 Core Remaining (%) 72 | 100 57 . . . 56 78 . Volleys Fired 257 | 9 43 79 3 4 . 35 84 Largest 3 | 2 2 2 2 1 . 2 3 Hottest 150 | 40 103 136 136 68 . 150 128 Shots Fired 541 | 18 86 158 6 4 . 68 201 Gun 232 | 18 66 . . . . . 148 Cannon 306 | . 20 158 6 1 . 68 53 Launcher . | . . . . . . . . Special 3 | . . . . 3 . . . Kinetic 282 | 18 76 . . . . . 188 Thermal 259 | . 10 158 6 4 . 68 13 Explosive . | . . . . . . . . Electromagnetic . | . . . . . . . . Robot Hit Streak 14 | 5 8 12 2 2 . 14 12 Robot Miss Streak 6 | 1 4 6 1 . . 2 4 Penetration Max 1 | . . . . . . . 1 Secondary Targets 2 | . 1 . . . . . 1 Max Gunslinging Chain 1 | . 1 . . . . . 1 Shots Hit Robots 339 | 13 52 93 3 1 . 46 131 Core Hits 152 | 3 22 39 4 . . 20 64 Critical Kills 1 | . . . . 1 . . . Critical Parts Destroyed 2 | . . . . . . . 2 Critical Strikes 5 | . 1 . . 1 . . 3 Meltdown 1 | . . . . 1 . . . Blast 2 | . 1 . . . . . 1 Smash 2 | . . . . . . . 2 Melee Attacks 31 | . 3 . . . . 2 26 Impact 24 | . 3 . . . . 2 19 Slashing 7 | . . . . . . . 7 Piercing . | . . . . . . . . Sneak Attacks 1 | . . . . . . 1 . Combat Hostiles . | . . . . . . . . Follow-up Attacks . | . . . . . . . . Damage Inflicted 7886 | 135 752 2074 80 21 . 1115 3709 Guns 2342 | 135 494 . . . . . 1713 Cannons 4351 | . 258 2074 80 21 . 1014 904 Explosions 475 | . . . . . . . 475 Melee 714 | . . . . . . 97 617 Ramming 4 | . . . . . . 4 . Kinetic 3221 | 135 650 . . . . . 2436 Thermal 3472 | . 102 2074 80 21 . 1014 181 Explosive 475 | . . . . . . . 475 Electromagnetic . | . . . . . . . . Impact 714 | . . . . . . 97 617 Slashing . | . . . . . . . . Piercing . | . . . . . . . . Highest Corruption 16 | . 1 1 1 1 1 . 16 Average Corruption 1 | . 1 1 1 1 1 . 2 Corruption Purged . | . . . . . . . . Corruption Blocked . | . . . . . . . . Effects 24 | . 1 . . 4 1 . 18 Message Errors 9 | . . . . 1 1 . 7 Matter Fused 4 | . 1 . . 1 . . 2 Heat Flow Errors 1 | . . . . . . . 1 Energy Discharges 2 | . . . . . . . 2 Parts Rejected 2 | . . . . . . . 2 Data Loss (minor) 4 | . . . . 2 . . 2 Data Loss (major) 2 | . . . . . . . 2 Overload Shots . | . . . . . . . . Overflow Damage 236 | . . 7 . . . . 229 Projectiles 7 | . . 7 . . . . . Explosions 96 | . . . . . . . 96 Melee 133 | . . . . . . . 133 Knockbacks 8 | . 1 . . . . . 7 Impact 3 | . . . . . . . 3 Kinetic 5 | . 1 . . . . . 4 Secondary . | . . . . . . . . Self-Inflicted Damage 58 | . . . . . . . 58 Shots 1 | . . . . . . . 1 Rammed . | . . . . . . . . Targets Rammed 1 | . . . . . . 1 . Kicked 1 | . . . . . . 1 . Crushed . | . . . . . . . . Highest Temperature 869 | . 20 162 54 . . 869 257 Average Temperature 99 | . 6 43 28 . . 227 41 Received Heat Transfer 1857 | . 264 198 . . . 288 1107 Effects 26 | . . . . . . 26 . Shutdowns 4 | . . . . . . 4 . Energy Bleed 3 | . . . . . . 3 . Short Circuit 1 | . . . . . . 1 . Damage (minor) 3 | . . . . . . 3 . Damage (major) 14 | . . . . . . 14 . Damage (core) 1 | . . . . . . 1 . Siege Activations . | . . . . . . . . Robots Corrupted . | . . . . . . . . Combat Hostiles . | . . . . . . . . Parts Fried . | . . . . . . . . Impact Corruptions 4 | . . . . . . . 4 Robots Melted 1 | . . . . 1 . . . Combat Hostiles 1 | . . . . 1 . . . Parts Melted 12 | . . 6 1 . . 5 . Heat Transferred 6068 | . 185 3737 148 37 . 1702 259 Parts Sabotaged . | . . . . . . . . Parts Stolen . | . . . . . . . . Parts Stripped . | . . . . . . . . Power Chain Reactions . | . . . . . . . . Alert | -11 -10 -9 -9 -9 -8 -8 -7 ------- Run | Yrd Mat Mat Min Exi Min Mat Fac Peak Influence 953 | 10 236 782 339 . . 570 953 Initial 259 | . 6 48 249 . . . 259 Average 420 | 6 111 401 334 . . 313 584 Maximum Alert Level 3 | . 1 3 1 . . 2 3 Low Security (%) 24 | 100 80 23 . . 100 36 . Level 1 23 | . 19 34 100 . . 13 20 Level 2 32 | . . 21 . . . 50 47 Level 3 19 | . . 20 . . . . 31 Level 4 . | . . . . . . . . Level 5 . | . . . . . . . . High Security . | . . . . . . . . Max Security . | . . . . . . . . Squads Dispatched 16 | . 1 3 . . . 2 10 Investigation 5 | . 1 1 . . . 1 2 Extermination 2 | . . . . . . . 2 Reinforcement 6 | . . 2 . . . . 4 Assault 2 | . . . . . . . 2 Garrison 1 | . . . . . . 1 . Intercept . | . . . . . . . . Searches Triggered . | . . . . . . . . Construction Impeded . | . . . . . . . . Haulers Reinforced 1 | . . . . . . . 1 Active Scanning Responses . | . . . . . . . . Cargo Convoy Interrupts . | . . . . . . . . Stealth | -11 -10 -9 -9 -9 -8 -8 -7 --------- Run | Yrd Mat Mat Min Exi Min Mat Fac Distress Signals 4 | . 1 1 . . . . 2 Communications Jammed . | . . . . . . . . Distress Signals . | . . . . . . . . Times Spotted 123 | . 13 37 2 . . 14 57 Peak Tracking Total 10 | . 4 8 2 . . 4 10 Tactical Retreats 12 | . . 1 . . . 2 9 Traps | -11 -10 -9 -9 -9 -8 -8 -7 ------- Run | Yrd Mat Mat Min Exi Min Mat Fac Traps Triggered 8 | . 1 2 . . . . 5 Indirectly . | . . . . . . . . Trap Hack Attempts . | . . . . . . . . Triggered . | . . . . . . . . Disarmed . | . . . . . . . . Reprogrammed . | . . . . . . . . Reused . | . . . . . . . . Traps Extracted . | . . . . . . . . Installed . | . . . . . . . . Triggered . | . . . . . . . . Machines | -11 -10 -9 -9 -9 -8 -8 -7 ---------- Run | Yrd Mat Mat Min Exi Min Mat Fac Machines Disabled 9 | . . 5 . . . . 4 Max in Single Turn 4 | . . 1 . . . . 4 Garrison Access 2 | . . . . . . 1 1 Machines Repaired . | . . . . . . . . Machines Dismantled . | . . . . . . . . Machines Sabotaged . | . . . . . . . . Overloaded Fab Kills . | . . . . . . . . Hacking | -11 -10 -9 -9 -9 -8 -8 -7 --------- Run | Yrd Mat Mat Min Exi Min Mat Fac Machines Accessed 9 | . 3 2 . 1 . 1 2 Terminals 5 | . 3 2 . . . . . Fabricators . | . . . . . . . . Repair Stations . | . . . . . . . . Recycling Units . | . . . . . . . . Scanalyzers . | . . . . . . . . Garrison Access 3 | . . . . . . 1 2 Total Hacks 29 | . 8 8 . 2 . 5 6 Successful 12 | . 3 3 . 2 . 1 3 Failed 17 | . 5 5 . . . 4 3 Catastrophic 4 | . 2 . . . . . 2 Database Lockouts . | . . . . . . . . Manual 20 | . 6 8 . . . 1 5 Terminals 16 | . 8 8 . . . . . Fabricators . | . . . . . . . . Repair Stations . | . . . . . . . . Recycling Units . | . . . . . . . . Scanalyzers . | . . . . . . . . Garrison Access 11 | . . . . . . 5 6 Terminal Hacks 4 | . 1 1 . 2 . . . Record 2 | . . . . 2 . . . Terminal Index 1 | . . 1 . . . . . Zone Layout 1 | . 1 . . . . . . Fabricator Hacks . | . . . . . . . . Repair Station Hacks . | . . . . . . . . Recycling Unit Hacks . | . . . . . . . . Scanalyzer . | . . . . . . . . Garrison Access Hacks . | . . . . . . . . Unauthorized Hacks 8 | . 2 2 . . . 1 3 Terminals 4 | . 2 2 . . . . . Botnet 3 | . 1 2 . . . . . Operators 1 | . 1 . . . . . . Fabricators . | . . . . . . . . Repair Stations . | . . . . . . . . Recycling Units . | . . . . . . . . Scanalyzers . | . . . . . . . . Garrison Access 4 | . . . . . . 1 3 Broadcast 1 | . . . . . . . 1 Watchers 1 | . . . . . . . 1 Jam 2 | . . . . . . 1 1 Data Cores Recovered . | . . . . . . . . Used . | . . . . . . . . Hacking Detections 8 | . 3 2 . . . 1 2 Full Trace Events 2 | . 1 . . . . . 1 Feedback Events 1 | . . . . . . . 1 Corruption 1 | . . . . . . . 1 Feedback Blocked . | . . . . . . . . Robot Schematics Acquired . | . . . . . . . . Robots Built . | . . . . . . . . Authchips . | . . . . . . . . Time . | . . . . . . . . Total Robot Build Rating . | . . . . . . . . Part Schematics Acquired . | . . . . . . . . Parts Built . | . . . . . . . . Authchips . | . . . . . . . . Time . | . . . . . . . . Total Part Build Rating . | . . . . . . . . Parts Repaired . | . . . . . . . . Time . | . . . . . . . . Parts Recycled . | . . . . . . . . Recycled Matter . | . . . . . . . . Retrieved Matter . | . . . . . . . . Retrieved Components . | . . . . . . . . Parts Scanalyzed . | . . . . . . . . Part Schematics Acquired . | . . . . . . . . Parts Damaged . | . . . . . . . . Bothacking | -11 -10 -9 -9 -9 -8 -8 -7 ------------ Run | Yrd Mat Mat Min Exi Min Mat Fac Used RIF Installer . | . . . . . . . . Robots Hacked . | . . . . . . . . Non-combat . | . . . . . . . . Combat . | . . . . . . . . Robot Hacks Applied . | . . . . . . . . Relay Couplers Released . | . . . . . . . . Fabnet Peak Effective % . | . . . . . . . . Robots Rewired 1 | . . . . 1 . . . Allies Hacked . | . . . . . . . . Hacks Repelled . | . . . . . . . . Allies | -11 -10 -9 -9 -9 -8 -8 -7 -------- Run | Yrd Mat Mat Min Exi Min Mat Fac Total Allies 1 | . . . . 1 . . . Largest Group 1 | . . . . 1 . . . Highest-Rated Group 8 | . . . . 8 . . . Highest-Rated Ally 8 | . . . . 8 . . . Total Orders . | . . . . . . . . Ally Attacks . | . . . . . . . . Total Damage . | . . . . . . . . Kills . | . . . . . . . . Allies Corrupted . | . . . . . . . . Allies Melted . | . . . . . . . . Intel | -11 -10 -9 -9 -9 -8 -8 -7 ------- Run | Yrd Mat Mat Min Exi Min Mat Fac Robot Analysis Total . | . . . . . . . . Derelict Logs Recovered . | . . . . . . . . Drone Launches . | . . . . . . . . Drone Recoveries . | . . . . . . . . Exploration | -11 -10 -9 -9 -9 -8 -8 -7 ------------- Run | Yrd Mat Mat Min Exi Min Mat Fac Turns Passed 3967 | 46 561 865 42 511 28 326 1588 Spaces Moved 2725 | 15 346 642 39 543 33 194 913 Core 62 | . . . . . . . 62 Treads . | . . . . . . . . Legs 734 | 15 234 . . . . 26 459 Wheels 1929 | . 112 642 39 543 33 168 392 Hover . | . . . . . . . . Flight . | . . . . . . . . Fastest Speed 50 | 120 90 86 86 86 86 86 50 Average Speed 104 | 120 110 88 86 86 86 92 127 Slowest Speed 300 | 120 120 105 86 86 86 190 300 Overloaded Moves . | . . . . . . . . Propulsion Burnouts . | . . . . . . . . Robots Hopped . | . . . . . . . . Cave-ins Triggered . | . . . . . . . . Exploration Rate (%) 34 | 3 35 75 9 88 15 22 27 Regions Visited 7 Branch Regions 3 Pre-discovered Areas . | . . . . . . . . Known Exits Taken 1 | . . . . . . 1 . Unknown Exits Taken 6 | 1 1 1 1 1 1 . . Scrap Searched . | . . . . . . . . Spaces Dug 8 | . 1 . . . . 1 6 Terrain Destroyed 55 | . 1 . . . . 7 47 Melee 8 | . 1 . . . . 1 6 Projectile 23 | . . . . . . 6 17 AOE 24 | . . . . . . . 24 Terrain Rammed . | . . . . . . . . Walls Destroyed . | . . . . . . . . Machines Disabled . | . . . . . . . . Actions | -11 -10 -9 -9 -9 -8 -8 -7 --------- Run | Yrd Mat Mat Min Exi Min Mat Fac Total 3293 | 26 437 785 41 579 32 269 1124 Wait 70 | . 12 30 . . . 8 20 Move 2718 | 14 345 641 38 542 32 193 913 Hop . | . . . . . . . . Pick Up 46 | 2 11 10 . . . 6 17 Fast Attach 32 | 1 2 3 . . . 4 22 Attach 28 | . . 5 . . . 4 19 Detach 3 | . . . . . . . 3 Swap 29 | . 8 6 . 2 . 7 6 Drop 49 | . 13 11 . 1 . 9 15 Fire 257 | 9 43 79 3 4 . 35 84 Melee 30 | . 3 . . . . 2 25 Ram . | . . . . . . . . Kick 1 | . . . . . . 1 . Crush . | . . . . . . . . Escape Stasis . | . . . . . . . . Rewire 30 | . . . . 30 . . . Trap . | . . . . . . . . Miscellaneous . | . . . . . . . . Route ------- -11/Scrapyard -10/Materials -9/Materials (discovered 5 exits: *Mat x2 / [*Min x2] / [*Sto]) -9/Mines -9/Exiles -8/Mines -8/Materials -7/Factory (discovered 2 exits: *Fac / *Low) History --------- Turn | Location | Event 27 | -11/Scrapyard | Discovered new exit (range 3) 47 | -11/Scrapyard | Entered Materials 317 | -10/Materials | Build established: Mutant 419 | -10/Materials | Discovered new exit (range 16) 608 | -10/Materials | Entered another Materials area 608 | -9/Materials | Evolved 2 slots: Propulsion x1, Utility x1 691 | -9/Materials | Discovered new exit (range 15) 763 | -9/Materials | Discovered new exit (range 12) 990 | -9/Materials | Discovered new exit (range 6) 1064 | -9/Materials | Destroyed 7 combat bots 1286 | -9/Materials | Discovered new exit (range 12) 1465 | -9/Materials | Discovered new exit (range 11) 1473 | -9/Materials | Entered Mines 1512 | -9/Mines | Deemed a non-threat by the Exiles lab entrance 1512 | -9/Mines | Discovered new exit (range 5) 1515 | -9/Mines | Entered Exiles 1515 | -9/Exiles | Found Exiles lab destroyed 1901 | -9/Exiles | Discovered new exit (range 10) 2026 | -9/Exiles | Entered Mines 2043 | -8/Mines | Discovered new exit (range 14) 2054 | -8/Mines | Entered Materials 2054 | -8/Materials | Evolved 2 slots: Utility x2 2134 | -8/Materials | Garrison activated, responded to threat 2358 | -8/Materials | Discovered new exit (range 16) 2374 | -8/Materials | Identified exit to Factory 2380 | -8/Materials | Entered Factory 2380 | -7/Factory | Evolved 2 slots: Utility x1, Weapon x1 2625 | -7/Factory | Discovered new exit (range 7) 2641 | -7/Factory | Identified exit to Lower Caves 2684 | -7/Factory | Build established: Scavenger-Gunner 2767 | -7/Factory | Lost 3 parts (1n1u1w) 2791 | -7/Factory | Discovered new exit (range 12) 2810 | -7/Factory | Identified exit to Factory 3580 | -7/Factory | First assault squad dispatched 3592 | -7/Factory | Build established: Mutant 3713 | -7/Factory | Core integrity fell below 50% 3748 | -7/Factory | Lost 10 parts (3p2n2u3w) 3828 | -7/Factory | Core integrity fell below 20% 3854 | -7/Factory | Lost 9 parts (2p2n3u2w) 3963 | -7/Factory | System corruption reached 10% 3968 | -7/Factory | Destroyed by B-48 Gladiator with Mace Last Messages --------------- 03912_ K-01 Serf cleans the Neutrino Reactor. 03919_ Acquired Unknown Device. 03919_ Identified Transmission Jammer. 03922_ System corrupted: Energy discharge (-22). 03925_ Acquired Hrd. Medium Armor Plating. 03928_ Dropped Transmission Jammer. 03933_ Acquired Transmission Jammer. 03948_ System corrupted: Transmission Jammer rejected. 03948_ Acquired Transmission Jammer. 03950_ ALERT: Suspicious intruders detected, dispatching Specialist reinforcements to area. 03957_ B-48 Gladiator suffers critical hit (Smash). 03957_ Destroyed Lgt. Treads. 03957_ B-48 Gladiator system corrupted by crushing effect. 03960_ Imp. Signal Interpreter destroyed. 03960_ System corrupted by crushing effect (+4). 03960_ Knocked back. 03962_ Core Analyzer destroyed. 03962_ System corrupted by crushing effect (+2). 03965_ Transmission Jammer destroyed. 03965_ System corrupted by crushing effect (+5). Map ----- +----------------------------------------------------+ | ??????# ! "=| # # | | ??????# " # """ # """ " | | ??????######+""""""" # """ # """ " | | ????????? " " # """ # """ " | | ??????? ###### "+" # | | ????? #????# # + """ " | | ???? #????# # # """ " | | ?? #????# # # """ " | | ?# """ """ #????# ######### | | ?# """ """ #????# | | ?# """ """ #????# | | ????? "" "" #????# """ """ " | | ???????"???" #????# """ """ "R | | ??????????? #????#^ """ """ ?" | | ??????????? #????# ######?#?? | | ?????????########### """ """ #????????? | | ??????? """ """ #????????? | | ??????? """ """ #????????? | | ??????? #????????? | | ??????? #????????? | | ??????? #????????? | | ???????? ##########+###########????????? | | ???????????????# #????????????? | | ???????????????# #????????????? | | ???????????????# b #????????????? | | ??????????????## @ #????????????? | | ??????????????#; """ """ #????????????? | | ????????H?????## """ """ #????????????? | | ???????????????# """ """ #????????????? | | ???????????????# #????????????? | | ???????????????# """ """ ?#????????????? | | ???????????????# """ """???????????????? | | ???????????????# """ ""????????????????? | | ???????????????# ????????????????? | | ???????????????#######?#?????????????????? | | ?????????????????????????????????????????? | | ?????????????????????????????????????????? | | ?????????????????????????????????????????? | | ?????????????????????????????????????????? | | ?????????????????????????????????????????? | | ?????????????????????????????????????????? | | ?????????????????????????????????????????? | | ?????????????????????????????????????????? | | ?????????????????????????????????????????? | | ?????????????????????????????????????????? | | ?????????????????????????????????????????? | | ?????????????????????????????????????????? | | ?????????????????????????????????????????? | | ?????????????????????????????????????????? | | ?????????????????????????????????????????? | +----------------------------------------------------+ Best States ------------- Heat Dissipation 72 Energy Generation 15 Energy Capacity 275 Matter Stores 300 Matter Capacity 300 Sight Range 16 Terrain Scan Density 10 Jamming Range 12 Armor Coverage 300 Utility Shielding 66 Evasion (%) 55 Targeting Accuracy 6 Core Analysis 6 Kinecelleration 30 Item Schematics ----------------- None Robot Schematics ------------------ None Fabricated ------------ Nothing Alien Tech Used ----------------- None Achievements -------------- None Challenges ------------ None Game ------ Seed FlightStormCanceller Manual? 0 Play Time 00:53:55 Cumulative 145.3 hours Start 2024.03.08 @ 22:15:35 End 2024.03.08 @ 23:08:14 Sessions 1 Manual Loads 0 Difficulty Rogue Special Mode None Game No. 122 Rogue 116 Adventurer 0 Explorer 6 Win Type - Total 3 Types 3/0/0/0/0/0/0/0/0 Lore% 41 Gallery% 55 Achievement% 47 Wizard Run 0 Options --------- Layout 0 ASCII 0 Keyboard 0 Movement Numpad Keybinds 0 Fullscreen 1 Font 24/Smallcaps Map View 113x50 Zoom Use 0% Tactical HUD 1 Map Filters NONE Filters NONE Steam X RUN: 9e9e38e4-4ea1-4808-b4e3-ef57ea67c606